bitfinex/quotes_ETHUSD_20230830
["timestamp","ask_amount","ask_price","bid_price","bid_amount"]
[1693372244037,2.0256,1720.9,1720.8,3.88336797]
[1693372244236,48.28605642,1721.1,1720.8,3.88336797]
[1693372244551,48.28605642,1721.1,1720.8,2.87348065]
[1693372244753,4.82860564,1721.0,1720.8,2.87348065]
[1693372246902,0.51724886,1720.9,1720.8,2.87348065]
[1693372247134,0.51724886,1720.9,1720.8,3.88327091]
[1693372256417,0.51724886,1720.9,1720.8,1.00979026]
[1693372256817,0.51724886,1720.9,1720.7,1.62014004]
[1693372257054,1.37125431,1720.9,1720.8,1.00979026]
[1693372262239,1.37125431,1720.9,1720.8,1.00981038]
[1693372262438,1.37125431,1720.9,1720.7,1.62020177]
[1693372262747,1.37125431,1720.9,1720.8,1.00981038]
[1693372263247,1.37125431,1720.9,1720.7,1.62020177]
[1693372263453,1.37125431,1720.9,1720.8,1.00981038]
[1693372263654,1.37125431,1720.9,1720.7,1.62020177]
[1693372264564,1.37125431,1720.9,1720.8,1.00981038]
[1693372264982,1.37125431,1720.9,1720.7,0.61039139]
[1693372266785,2.78025431,1720.9,1720.7,0.61039139]
[1693372267087,2.78025431,1720.9,1720.6,0.61039139]
[1693372267385,1.409,1720.8,1720.6,0.61039139]
[1693372267568,1.92637487,1720.8,1720.6,0.61039139]
[1693372274557,1.92637487,1720.8,1720.7,1.00986115]
[1693372274751,2.3820629,1720.8,1720.5,1.52597847]
[1693372274958,2.3820629,1720.8,1720.5,2.53584989]
[1693372275355,2.3820629,1720.8,1720.6,1.00987142]
[1693372275540,4.0711629,1720.8,1720.5,1.52597847]
[1693372276202,2.3820629,1720.8,1720.5,1.52597847]
[1693372276387,0.51737487,1720.8,1720.7,0.61039139]
[1693372276593,0.51737487,1720.8,1720.7,5.27893882]
[1693372276768,2.9,1721.0,1720.7,5.27893882]
[1693372276967,2.9,1721.0,1720.8,4.97335912]
[1693372277167,2.9,1721.0,1720.9,1.00987109]
[1693372277368,2.9,1721.0,1720.9,4.36335174]
[1693372288190,2.9,1721.0,1720.9,5.16068765]
[1693372292115,3.38211469,1721.0,1720.9,5.16068765]
[1693372293709,3.38800484,1721.0,1720.9,5.16068765]
[1693372304312,3.38800484,1721.0,1720.9,4.36335174]
[1693372310938,3.38800484,1721.0,1720.9,3.35348065]
[1693372311269,3.38800484,1721.0,1720.9,4.36316662]
[1693372320587,3.38800484,1721.0,1720.9,4.97243261]
[1693372324051,3.38800484,1721.0,1720.9,4.36316662]
[1693372324251,3.72680532,1721.0,1720.9,1.00968597]
[1693372324658,3.72680532,1721.0,1720.8,1.61895196]
[1693372324858,3.72680532,1721.0,1720.9,1.00968597]
[1693372335456,3.72680532,1721.0,1720.7,0.60926599]
[1693372335664,1.409,1720.8,1720.7,1.00982574]
[1693372335965,4.01053354,1720.9,1720.7,1.00982574]
[1693372347000,0.85373354,1720.9,1720.7,3.88330639]
[1693372347303,0.85373354,1720.9,1720.7,2.87348065]
[1693372366336,0.85373354,1720.9,1720.6,8.78926599]
[1693372366637,0.85373354,1720.9,1720.7,1.00034936]
[1693372371047,0.85373354,1720.9,1720.6,11.66274664]
[1693372371048,0.85373354,1720.9,1720.6,11.66320539]
[1693372378300,0.85373354,1720.9,1720.6,12.5777925]
[1693372380261,0.85373354,1720.9,1720.7,0.60972474]
[1693372383863,0.00523027,1720.8,1720.7,0.60972474]
[1693372384201,0.47458251,1720.8,1720.7,0.60972474]
[1693372385199,0.47458251,1720.8,1720.6,11.96840255]
[1693372385373,0.47458251,1720.8,1720.7,0.60994793]
[1693372386601,0.47458251,1720.8,1720.7,1.61978119]
[1693372451041,0.47458251,1720.8,1720.7,4.49326184]
[1693372460252,0.47458251,1720.8,1720.7,5.40818374]
[1693372460472,0.47458251,1720.8,1720.7,4.79823581]
[1693372461455,0.47458251,1720.8,1720.7,5.40815614]
[1693372470346,3.37458251,1720.8,1720.7,5.40815614]
[1693372473814,3.37981543,1720.8,1720.7,5.40815614]
[1693372474276,3.37981543,1720.8,1720.7,5.88815614]
[1693372486341,3.37981543,1720.8,1720.7,5.27823581]
[1693372506486,3.71779697,1720.8,1720.7,5.27823581]
[1693372515638,3.37981543,1720.8,1720.7,5.27823581]
[1693372532041,3.54016134,1720.8,1720.7,5.27823581]
[1693372547157,3.54016134,1720.8,1720.7,4.79823581]
[1693372547324,3.54016134,1720.8,1720.7,2.53490402]
[1693372548019,3.54016134,1720.8,1720.7,1.52507076]
[1693372548623,4.07050747,1720.8,1720.7,1.52507076]
[1693372549655,4.07050747,1720.8,1720.7,0.61014886]
[1693372550633,4.07050747,1720.8,1720.6,2.13512147]
[1693372550831,4.07050747,1720.8,1720.7,0.6100347]
[1693372551171,4.07050747,1720.8,1720.7,1.61985741]
[1693372553957,4.07050747,1720.8,1720.7,1.00982271]
[1693372553958,5.47950747,1720.8,1720.7,1.00982271]
[1693372554159,11.29075747,1720.8,1720.5,1.52508676]
[1693372554351,1.95695075,1720.7,1720.6,1.0099437]
[1693372554683,1.95695075,1720.7,1720.5,1.52508676]
[1693372554974,2.58275684,1720.7,1720.6,1.0099437]
[1693372555342,2.58275684,1720.7,1720.5,0.6100347]
[1693372555945,2.58275684,1720.7,1720.5,1.6199784]
[1693372556145,2.58275684,1720.7,1720.6,1.0099437]
[1693372556450,2.58275684,1720.7,1720.5,0.6100347]
[1693372557695,1.17375684,1720.7,1720.5,0.6100347]
[1693372558809,2.58275684,1720.7,1720.5,0.6100347]
[1693372561110,2.58275684,1720.7,1720.6,1.00992752]
[1693372561270,2.58275684,1720.7,1720.5,0.60967094]
[1693372563700,2.58275684,1720.7,1720.6,1.00992752]
[1693372564079,2.58275684,1720.7,1720.5,0.60967094]
[1693372564565,2.58275684,1720.7,1720.4,2.53410487]
[1693372564765,2.58275684,1720.7,1720.4,5.40758552]
[1693372564965,2.58275684,1720.7,1720.5,1.00992752]
[1693372564966,4.25845684,1720.7,1720.5,1.00992752]
[1693372565278,0.42584568,1720.6,1720.5,1.00992752]
[1693372565706,1.05154796,1720.6,1720.5,1.00992752]
[1693372580062,1.05154796,1720.6,1720.5,1.0099309]
[1693372586361,0.28032328,1720.6,1720.5,1.0099309]
[1693372586565,0.67162068,1720.6,1720.5,1.0099309]
[1693372586767,0.3912974,1720.6,1720.5,1.0099309]
[1693372587134,1.00548704,1720.6,1720.5,1.0099309]
[1693372587366,0.61418964,1720.6,1720.5,1.0099309]
[1693372587768,6.69330932,1720.8,1720.5,1.0099309]
[1693372594063,0.61429346,1720.7,1720.5,1.0099309]
[1693372596786,0.61429346,1720.7,1720.5,1.61928135]
[1693372597394,0.61429346,1720.7,1720.4,5.99115678]
[1693372597689,0.61429346,1720.7,1720.5,1.61930283]
[1693372601495,1.34505374,1720.7,1720.5,1.61930283]
[1693372623255,2.75405374,1720.7,1720.5,1.61930283]
[1693372624454,1.409,1720.6,1720.4,0.60935045]
[1693372624657,1.409,1720.5,1720.3,2.53339966]
[1693372624856,1.409,1720.5,1720.4,1.0100462]
[1693372625023,1.98500186,1720.5,1720.3,1.52337613]
[1693372625627,1.98500186,1720.5,1720.4,1.0100462]
[1693372626036,1.98500186,1720.5,1720.3,0.60935045]
[1693372626223,2.36532205,1720.5,1720.3,0.60935045]
[1693372628464,2.36532205,1720.5,1720.3,1.61939665]
[1693372628751,2.36532205,1720.5,1720.4,1.0100462]
[1693372628946,2.36532205,1720.5,1720.3,0.60935045]
[1693372629454,2.36532205,1720.5,1720.3,1.61939665]
[1693372629663,2.36532205,1720.5,1720.4,1.0100462]
[1693372630444,2.36532205,1720.5,1720.3,0.60935045]
[1693372644852,2.36532205,1720.5,1720.1,0.68224145]
[1693372644853,1.409,1720.4,1720.1,0.68224145]
[1693372645181,1.409,1720.2,1720.1,0.072891]
[1693372645670,1.409,1720.2,1720.1,1.08308472]
[1693372646047,1.409,1720.3,1720.1,1.08308472]
[1693372646253,1.409,1720.3,1720.1,0.072891]
[1693372649979,4.309,1720.3,1720.1,0.072891]
[1693372650186,0.4309,1720.2,1720.1,0.072891]
[1693372650652,0.4309,1720.2,1720.1,1.0830846]
[1693372652102,1.04490183,1720.2,1720.1,1.0830846]
[1693372652483,1.04490183,1720.2,1720.1,0.072891]
[1693372655020,1.04791201,1720.2,1720.1,0.072891]
[1693372655200,2.45691201,1720.2,1720.1,0.072891]
[1693372655987,8.27018201,1720.2,1720.1,0.072891]
[1693372677899,6.86118201,1720.2,1720.1,0.072891]
[1693372682251,1.04791201,1720.2,1720.1,0.072891]
[1693372682421,0.61701201,1720.2,1720.1,0.072891]
[1693372686749,0.61701201,1720.2,1720.1,1.08312262]
[1693372706983,7.83928201,1720.2,1720.1,1.08312262]
[1693372719083,8.29533558,1720.2,1720.1,1.08312262]
[1693372719414,8.29533558,1720.2,1720.1,0.072891]
[1693372719610,10.17775614,1720.2,1720.1,1.08318492]
[1693372728634,10.17775614,1720.2,1720.1,0.072891]
[1693372730330,0.61701201,1720.2,1720.1,1.0831791]
[1693372732150,0.61701201,1720.2,1720.1,1.08316331]
[1693372739840,2.02601201,1720.2,1720.1,1.08316331]
[1693372745052,7.8427071,1720.2,1720.1,1.08316331]
[1693372745217,9.49827781,1720.2,1720.1,0.072891]
[1693372746865,24.12481781,1720.2,1720.0,0.058]
[1693372747564,22.71581781,1720.2,1720.0,0.058]
[1693372747734,13.89880178,1720.1,1720.0,0.058]
[1693372747936,15.30780178,1720.1,1720.0,0.058]
[1693372748135,21.12141178,1720.1,1720.0,0.058]
[1693372748340,21.68958588,1720.1,1720.0,0.058]
[1693372748935,24.69300188,1720.1,1720.0,0.058]
[1693372767421,13.06578188,1720.1,1720.0,0.058]
[1693372773227,18.87939188,1720.1,1720.0,0.058]
[1693372778441,7.25217188,1720.1,1720.0,0.058]
[1693372778642,13.06578188,1720.1,1720.0,0.058]
[1693372781750,18.87939188,1720.1,1720.0,0.058]
[1693372798162,17.47039188,1720.1,1720.0,0.058]
[1693372799539,18.88039188,1720.1,1720.0,0.058]
[1693372812925,18.88039188,1720.1,1720.0,0.058]
[1693372817937,24.69400188,1720.1,1720.0,0.058]
[1693372839972,24.69998002,1720.1,1720.0,0.058]
[1693372871354,27.59998002,1720.1,1720.0,0.058]
[1693372898437,26.18998002,1720.1,1720.0,0.058]
[1693372900613,27.59998002,1720.1,1720.0,0.058]
[1693372911364,30.47346067,1720.1,1720.0,0.058]
[1693372911783,32.0000713,1720.1,1720.0,0.058]
[1693372912640,30.47346067,1720.1,1720.0,0.058]
[1693372916642,32.0000713,1720.1,1720.0,0.058]
[1693372923539,17.44287,1719.9,1719.5,0.01]
[1693372923741,13.0406,1719.6,1719.5,0.01]
[1693372926794,7.2253,1719.6,1719.5,0.01]
[1693372929980,7.23096523,1719.6,1719.5,0.01]
[1693372934351,10.13096523,1719.6,1719.5,0.01]
[1693372936987,10.81035899,1719.6,1719.5,0.01]
[1693372937453,12.47290089,1719.6,1719.5,0.01]
[1693372941780,18.28820089,1719.6,1719.5,0.01]
[1693372948423,15.38820089,1719.6,1719.5,0.01]
[1693372951409,9.57290089,1719.6,1719.5,0.01]
[1693372954854,15.38820089,1719.6,1719.5,0.01]
[1693372958456,18.28820089,1719.6,1719.5,0.01]
[1693372965494,3.58505899,1719.6,1719.5,0.01]
[1693372969056,3.58505899,1719.6,1719.5,1.02061161]
[1693372971077,3.58505899,1719.6,1719.5,0.01]
[1693373006360,3.58505899,1719.6,1719.5,1.02061004]
[1693373020974,3.5904368,1719.6,1719.5,1.02061004]
[1693373058667,3.5904368,1719.6,1719.5,0.01]
[1693373078893,4.48193048,1719.6,1719.5,0.01]
[1693373092378,1.58193048,1719.6,1719.5,0.01]
[1693373092581,0.6904368,1719.6,1719.5,0.01]
[1693373100675,3.5904368,1719.6,1719.5,0.01]
[1693373111122,3.59583359,1719.6,1719.5,0.01]
[1693373117026,3.58644796,1719.6,1719.5,0.01]
[1693373132897,3.58644796,1719.6,1719.5,3.89408996]
[1693373133083,3.58644796,1719.6,1719.5,6.96363403]
[1693373133866,3.58644796,1719.6,1719.5,6.0470561]
[1693373134655,2.91643983,1719.6,1719.5,6.0470561]
[1693373134857,3.6548915,1719.6,1719.5,6.0470561]
[1693373136701,3.6548915,1719.6,1719.5,5.43600415]
[1693373138394,2.91643983,1719.6,1719.5,5.43600415]
[1693373139204,3.65457498,1719.6,1719.5,5.43600415]
[1693373146313,3.65457498,1719.6,1719.5,5.89002636]
[1693373152975,3.65457498,1719.6,1719.5,4.87941705]
[1693373169472,3.65457498,1719.6,1719.5,5.88999917]
[1693373169989,3.65457498,1719.6,1719.5,4.87941705]
[1693373170192,3.65457498,1719.6,1719.5,3.81750286]
[1693373170495,3.65457498,1719.6,1719.5,0.46402221]
[1693373171635,3.65457498,1719.6,1719.5,0.01]
[1693373174825,3.65457498,1719.6,1719.5,1.02061665]
[1693373178125,3.65457498,1719.6,1719.5,0.01]
[1693373178301,4.18903248,1719.6,1719.5,0.01]
[1693373182219,3.65457498,1719.6,1719.5,0.01]
[1693373202070,3.66048114,1719.6,1719.5,0.01]
[1693373231057,3.65481591,1719.6,1719.5,0.01]
[1693373240080,3.65481591,1719.6,1719.5,1.02065418]
[1693373240438,3.65481591,1719.6,1719.5,0.01]
[1693373240643,3.65481591,1719.6,1719.5,2.88348065]
[1693373240944,3.65481591,1719.6,1719.5,11.43414175]
[1693373241355,3.65481591,1719.6,1719.5,10.82448275]
[1693373241649,3.65481591,1719.6,1719.5,4.71048275]
[1693373241845,3.65481591,1719.6,1719.5,3.89413468]
[1693373245084,3.60481591,1719.6,1719.5,3.89413468]
[1693373246380,3.60481591,1719.6,1719.5,2.88348065]
[1693373249013,0.7494381,1719.6,1719.5,2.88348065]
[1693373269470,3.5494381,1719.6,1719.5,2.88348065]
[1693373278016,4.9594381,1719.6,1719.5,2.88348065]
[1693373282663,4.9594381,1719.6,1719.5,0.01]
[1693373285871,7.2144381,1719.6,1719.5,0.01]
[1693373291834,5.8044381,1719.6,1719.5,0.01]
[1693373292289,5.80991057,1719.6,1719.5,0.01]
[1693373292825,7.51624326,1719.6,1719.5,0.01]
[1693373314337,4.71624326,1719.6,1719.5,0.01]
[1693373319131,4.04987863,1719.6,1719.5,0.01]
[1693373320031,6.84987863,1719.6,1719.5,0.01]
[1693373379491,7.54635651,1719.6,1719.5,0.01]
[1693373382273,7.55162141,1719.6,1719.5,0.01]
[1693373419294,8.30678355,1719.6,1719.5,0.01]
[1693373419509,15.53208355,1719.6,1719.5,0.01]
[1693373420202,21.34738355,1719.6,1719.5,0.01]
[1693373421891,15.53208355,1719.6,1719.5,0.01]
[1693373422804,9.70540508,1719.6,1719.5,0.01]
[1693373426538,21.33600508,1719.6,1719.5,0.01]
[1693373426685,15.52070508,1719.6,1719.5,0.01]
[1693373434426,21.33600508,1719.6,1719.5,0.01]
[1693373434592,15.52070508,1719.6,1719.5,0.01]
[1693373434786,21.33600508,1719.6,1719.5,0.01]
[1693373435405,24.33600508,1719.6,1719.5,0.01]
[1693373451277,12.70540508,1719.6,1719.5,0.01]
[1693373451432,18.52070508,1719.6,1719.5,0.01]
[1693373452168,24.33600508,1719.6,1719.5,0.01]
[1693373473899,7.91174294,1719.6,1719.5,0.01]
[1693373476919,13.72704294,1719.6,1719.5,0.01]
[1693373485952,19.54234294,1719.6,1719.5,0.01]
[1693373487025,21.37264294,1719.6,1719.5,0.01]
[1693373524556,15.55734294,1719.6,1719.5,0.01]
[1693373524925,15.54160322,1719.6,1719.5,0.01]
[1693373536744,18.52521697,1719.6,1719.5,0.01]
[1693373537275,15.74095669,1719.6,1719.5,0.01]
[1693373538682,18.54095669,1719.6,1719.5,0.01]
[1693373541962,24.35625669,1719.6,1719.5,0.01]
[1693373546610,22.94625669,1719.6,1719.5,0.01]
[1693373546833,24.35625669,1719.6,1719.5,0.01]
[1693373557842,27.22973734,1719.6,1719.5,0.01]
[1693373558046,27.22973734,1719.6,1719.1,0.1]
[1693373558047,4.41,1719.5,1719.1,0.1]
[1693373558260,1.41,1719.2,1719.1,0.1]
[1693373558436,13.0433,1719.2,1719.1,0.1]
[1693373558615,13.04853678,1719.2,1719.1,0.1]
[1693373558951,18.86518678,1719.2,1719.1,0.1]
[1693373559748,18.86518678,1719.2,1718.9,0.332864]
[1693373559943,22.85520546,1719.2,1718.9,0.332864]
[1693373560357,1.41,1719.0,1718.9,0.1]
[1693373560648,7.22733,1719.0,1718.9,0.1]
[1693373561652,1.41522199,1719.0,1718.9,0.1]
[1693373563244,2.08240346,1719.0,1718.9,0.1]
[1693373564853,7.89973346,1719.0,1718.9,0.1]
[1693373565854,10.07092381,1719.0,1718.9,0.1]
[1693373567353,15.88825381,1719.0,1718.9,0.1]
[1693373570260,18.68825381,1719.0,1718.9,0.1]
[1693373571156,12.87092381,1719.0,1718.9,0.1]
[1693373571359,18.68825381,1719.0,1718.9,0.1]
[1693373572352,12.87092381,1719.0,1718.9,0.1]
[1693373584567,18.68825381,1719.0,1718.9,0.1]
[1693373585685,12.87092381,1719.0,1718.9,0.1]
[1693373589094,13.33754931,1719.0,1718.9,0.1]
[1693373589267,19.15487931,1719.0,1718.9,0.1]
[1693373589666,13.33754931,1719.0,1718.9,0.1]
[1693373592069,19.15487931,1719.0,1718.9,0.1]
[1693373594963,22.15487931,1719.0,1718.9,0.1]
[1693373602186,23.56487931,1719.0,1718.9,0.1]
[1693373614722,17.74754931,1719.0,1718.9,0.1]
[1693373614919,16.33754931,1719.0,1718.9,0.1]
[1693373622150,22.15487931,1719.0,1718.9,0.1]
[1693373626170,16.33754931,1719.0,1718.9,0.1]
[1693373642499,22.15487931,1719.0,1718.9,0.1]
[1693373657807,22.15487931,1719.0,1718.9,0.05]
[1693373666288,19.35487931,1719.0,1718.9,0.05]
[1693373670428,13.53754931,1719.0,1718.9,0.05]
[1693373673694,19.35487931,1719.0,1718.9,0.05]
[1693373677536,13.53754931,1719.0,1718.9,0.05]
[1693373680254,19.35487931,1719.0,1718.9,0.05]
[1693373686427,29.58220931,1719.0,1718.9,0.05]
[1693373696853,28.17220931,1719.0,1718.9,0.05]
[1693373703879,11.36635896,1719.0,1718.9,0.05]
[1693373704089,1.13902896,1719.0,1718.9,0.05]
[1693373704290,0.65375154,1719.0,1718.9,0.05]
[1693373704612,0.47160218,1719.2,1718.9,0.05]
[1693373704755,5.81646,1719.3,1718.9,0.05]
[1693373704961,0.57605066,1719.1,1718.9,0.05]
[1693373705333,11.63297,1719.3,1718.9,0.05]
[1693373705727,0.0043542,1719.2,1718.9,0.05]
[1693373705927,3.0043542,1719.2,1718.9,2.92348065]
[1693373706127,3.0043542,1719.2,1719.0,0.29234807]
[1693373707180,0.0043542,1719.2,1719.0,0.29234807]
[1693373712174,0.57582661,1719.1,1719.0,0.29234807]
[1693373712604,0.0043542,1719.2,1719.0,0.29234807]
[1693373712803,0.00435234,1719.1,1719.0,0.29234807]
[1693373713729,3.46151516,1719.3,1719.0,0.29234807]
[1693373713934,9.27790516,1719.3,1719.0,0.29234807]
[1693373714726,2.8,1719.1,1719.0,0.29234807]
[1693373715741,2.80433371,1719.1,1719.0,0.29234807]
[1693373722270,2.80433371,1719.1,1719.0,3.16582872]
[1693373722472,2.80433371,1719.1,1719.0,3.64582872]
[1693373725828,2.80433371,1719.1,1719.0,11.16982872]
[1693373728057,3.38039139,1719.1,1719.0,11.16982872]
[1693373731435,3.38039139,1719.1,1719.0,9.75982872]
[1693373732868,3.38466571,1719.1,1719.0,9.75982872]
[1693373736390,3.38466571,1719.1,1719.0,10.7706948]
[1693373756572,3.38466571,1719.1,1719.0,9.75982872]
[1693373759517,3.38466571,1719.1,1719.0,10.77073013]
[1693373765212,3.38466571,1719.1,1719.0,11.38191488]
[1693373771228,3.38466571,1719.1,1719.0,11.68750725]
[1693373773248,3.38466571,1719.1,1719.0,49.61424173]
[1693373773540,3.38466571,1719.1,1719.0,14.61424173]
[1693373773705,3.38466571,1719.1,1719.0,13.09750725]
[1693373774141,3.38466571,1719.1,1719.0,14.61424173]
[1693373777231,3.38466571,1719.1,1719.0,13.09750725]
[1693373777447,3.38466571,1719.1,1719.0,48.70791042]
[1693373777651,3.38466571,1719.1,1719.0,50.2246449]
[1693373778253,3.38466571,1719.1,1719.0,50.22460589]
[1693373778456,3.38466571,1719.1,1719.0,13.81460589]
[1693373778654,3.38466571,1719.1,1719.0,12.29787141]
[1693373778954,3.38466571,1719.1,1719.0,10.90109429]
[1693373779143,3.38466571,1719.1,1719.0,12.41782877]
[1693373780569,3.38466571,1719.1,1719.0,12.89782877]
[1693373781451,3.38466571,1719.1,1719.0,11.38109429]
[1693373785444,3.38466571,1719.1,1719.0,12.89782877]
[1693373787441,3.36977283,1719.1,1719.0,12.89782877]
[1693373791421,3.36977283,1719.1,1719.0,11.38109429]
[1693373795293,3.36977283,1719.1,1719.0,12.89782877]
[1693373801620,3.36977283,1719.1,1719.0,13.81460589]
[1693373803304,3.36977283,1719.1,1719.0,13.81310191]
[1693373803905,3.36977283,1719.1,1719.0,13.20258418]
[1693373804836,3.36977283,1719.1,1719.0,11.68639686]
[1693373808934,3.36977283,1719.1,1719.0,13.20258418]
[1693373809335,3.36977283,1719.1,1719.0,17.4239909]
[1693373809634,3.36977283,1719.1,1719.0,19.50784305]
[1693373809841,2.78510712,1719.1,1719.0,19.50784305]
[1693373810139,2.78510712,1719.1,1719.0,20.42397724]
[1693373810855,2.78510712,1719.1,1719.0,19.50784305]
[1693373811348,2.78510712,1719.1,1719.0,13.50784305]
[1693373811555,2.78510712,1719.1,1719.0,12.90790178]
[1693373812141,3.40634735,1719.1,1719.0,12.90790178]
[1693373812730,3.4142808,1719.1,1719.0,12.90790178]
[1693373814364,3.4142808,1719.1,1719.0,12.9087442]
[1693373815062,3.4142808,1719.1,1719.0,11.99239955]
[1693373815763,3.4142808,1719.1,1719.0,13.5085665]
[1693373826807,3.4142808,1719.1,1719.0,13.3585665]
[1693373833569,3.4142808,1719.1,1719.0,14.88580759]
[1693373835268,3.4142808,1719.1,1719.0,15.35457705]
[1693373835786,3.4142808,1719.1,1719.0,19.95278418]
[1693373836017,2.80790187,1719.1,1719.0,20.4907736]
[1693373836184,1.7298907,1719.1,1719.0,57.32346291]
[1693373836385,1.7298907,1719.1,1719.0,58.83962986]
[1693373836386,1.10865047,1719.1,1719.0,58.83962986]
[1693373836778,1.10071702,1719.1,1719.0,58.83962986]
[1693373837891,1.10071702,1719.1,1719.0,57.00694055]
[1693373838714,2.1852,1719.5,1719.0,57.00694055]
[1693373838877,2.1852,1719.5,1719.3,7.63963742]
[1693373839079,2.1852,1719.5,1719.4,4.36425861]
[1693373839788,2.19195193,1719.5,1719.4,4.36425861]
[1693373848301,2.81369324,1719.5,1719.4,4.36425861]
[1693373848634,3.91369324,1719.5,1719.4,4.36425861]
[1693373848828,3.91369324,1719.5,1719.4,5.70584927]
[1693373861757,3.91369324,1719.5,1719.4,4.69507131]
[1693373861995,3.91369324,1719.5,1719.4,5.70566197]
[1693373873609,3.91369324,1719.5,1719.4,6.31525466]
[1693373874346,3.91369324,1719.5,1719.4,5.70566197]
[1693373874629,3.91369324,1719.5,1719.4,6.31525466]
[1693373880723,3.91369324,1719.5,1719.4,7.2296437]
[1693373881623,3.91369324,1719.5,1719.4,6.62005101]
[1693373883369,1.72849324,1719.5,1719.4,6.62005101]
[1693373885149,0.62849324,1719.5,1719.4,6.62005101]
[1693373886900,0.62849324,1719.5,1719.4,7.8392364]
[1693373887491,0.62849324,1719.5,1719.4,6.62005101]
[1693373887683,0.62849324,1719.5,1719.4,7.8392364]
[1693373888190,0.62849324,1719.5,1719.4,6.62005101]
[1693373888494,0.62849324,1719.5,1719.4,7.8392364]
[1693373890098,3.52849324,1719.5,1719.4,7.8392364]
[1693373893866,2.9,1719.5,1719.4,7.8392364]
[1693373894066,3.52173087,1719.5,1719.4,7.8392364]
[1693373894803,3.52796996,1719.5,1719.4,7.8392364]
[1693373908518,3.52796996,1719.5,1719.4,6.92484736]
[1693373909540,3.52796996,1719.5,1719.4,7.84094485]
[1693373916611,3.52796996,1719.5,1719.4,6.92484736]
[1693373917346,3.52796996,1719.5,1719.4,7.84096117]
[1693373917525,3.52796996,1719.5,1719.4,6.92484736]
[1693373919161,3.52796996,1719.5,1719.4,7.38620138]
[1693373919330,3.52796996,1719.5,1719.4,8.30233537]
[1693373919532,3.52796996,1719.5,1719.4,7.38620138]
[1693373919836,3.52796996,1719.5,1719.4,8.30234489]
[1693373922749,3.52796996,1719.5,1719.4,7.38620138]
[1693373923452,3.52796996,1719.5,1719.4,6.92484736]
[1693373923775,0.62796996,1719.5,1719.4,6.92484736]
[1693373927775,0.62796996,1719.5,1719.4,15.9728291]
[1693373928187,0.00623909,1719.5,1719.4,15.9728291]
[1693373928882,2.3479,1719.7,1719.4,15.9728291]
[1693373929176,1.6815,1720.0,1719.6,9.5982809]
[1693373929382,2.3343,1719.9,1719.7,7.60459066]
[1693373929581,2.3343,1719.9,1719.8,2.87348065]
[1693373929783,2.3343,1719.9,1719.8,3.35348065]
[1693373930277,2.3343,1719.9,1719.8,4.36394611]
[1693373930859,2.3343,1719.9,1719.8,3.35348065]
[1693373933885,2.3400523,1719.9,1719.8,3.35348065]
[1693373935065,2.3400523,1719.9,1719.8,4.36392566]
[1693373935290,2.3400523,1719.9,1719.8,4.36392808]
[1693373935589,2.3400523,1719.9,1719.8,3.35348065]
[1693373938315,2.98811897,1719.9,1719.8,3.35348065]
[1693373951953,2.98811897,1719.9,1719.8,4.36389426]
[1693373979602,2.98811897,1719.9,1719.8,4.97469451]
[1693373980911,2.98811897,1719.9,1719.8,4.36389426]
[1693373981387,2.98811897,1719.9,1719.8,4.97469451]
[1693373981590,2.98811897,1719.9,1719.8,4.36389426]
[1693373984207,2.98811897,1719.9,1719.8,4.97469451]
[1693373987320,2.98811897,1719.9,1719.8,3.88389426]
[1693373995353,3.57693087,1719.9,1719.8,1.01041361]
[1693373995502,4.98693087,1719.9,1719.8,1.01041361]
[1693373995701,9.39122087,1719.9,1719.6,0.61080025]
[1693373995895,15.20551087,1719.9,1719.5,1.52700063]
[1693373996101,15.20551087,1719.9,1719.4,1.52700063]
[1693373996102,1.52055109,1719.8,1719.4,1.52700063]
[1693373996320,1.52055109,1719.8,1719.5,1.01061549]
[1693373996321,5.81503,1719.7,1719.5,1.01061549]
[1693373996524,1.41,1719.6,1719.3,1.52700063]
[1693373996718,1.41,1719.5,1719.4,1.01065898]
[1693373997211,8.17413191,1719.5,1719.4,1.01065898]
[1693373997407,8.17413191,1719.5,1719.3,0.61080025]
[1693373997613,8.17413191,1719.5,1719.2,0.61080025]
[1693373997818,0.00549484,1719.4,1719.2,3.4842809]
[1693373998003,0.00549484,1719.4,1719.3,1.0106678]
[1693373998217,1.06769923,1719.4,1719.3,1.0106678]
[1693373999324,1.06769923,1719.4,1719.2,0.61080025]
[1693374002438,2.47769923,1719.4,1719.2,0.61080025]
[1693374002642,2.47769923,1719.4,1719.3,1.0106678]
[1693374002837,2.47769923,1719.4,1719.1,0.61080025]
[1693374003144,2.47769923,1719.4,1719.1,3.4842809]
[1693374003312,2.47769923,1719.4,1719.2,1.01067933]
[1693374020568,2.47769923,1719.4,1719.2,1.62147958]
[1693374021071,2.47769923,1719.4,1719.1,4.40048128]
[1693374021371,4.80829923,1719.4,1719.2,1.01070765]
[1693374021673,0.48082992,1719.3,1719.2,1.6215079]
[1693374021834,4.80829923,1719.4,1719.3,0.48082992]
[1693374022039,4.16679351,1719.4,1719.3,1.49153757]
[1693374028173,4.78341626,1719.4,1719.3,1.49153757]
[1693374031946,3.37341626,1719.4,1719.3,1.49153757]
[1693374032984,3.37649706,1719.4,1719.3,1.49153757]
[1693374033585,3.37649706,1719.4,1719.3,2.10233782]
[1693374033778,2.95579839,1719.4,1719.3,1.6215079]
[1693374034178,2.95579839,1719.4,1719.3,0.61080025]
[1693374039590,2.95579839,1719.4,1719.3,1.52700063]
[1693374040585,2.95579839,1719.4,1719.3,0.61080025]
[1693374040795,2.95579839,1719.4,1719.3,1.92690803]
[1693374041091,2.95579839,1719.4,1719.3,0.91620038]
[1693374045795,2.95579839,1719.4,1719.3,1.52716412]
[1693374046794,2.95579839,1719.4,1719.3,1.62167139]
[1693374046996,2.95579839,1719.4,1719.3,0.61096374]
[1693374047586,2.95579839,1719.4,1719.3,1.62167139]
[1693374048288,2.95579839,1719.4,1719.3,0.61096374]
[1693374049298,2.95579839,1719.4,1719.3,1.62168733]
[1693374049499,2.95579839,1719.4,1719.3,0.61098506]
[1693374063603,2.95579839,1719.4,1719.3,1.62168733]
[1693374064298,2.95579839,1719.4,1719.3,0.61098506]
[1693374066013,2.95579839,1719.4,1719.3,1.01070227]
[1693374066636,2.95579839,1719.4,1719.2,2.53816493]
[1693374066830,2.95579839,1719.4,1719.3,1.01070227]
[1693374067046,2.95579839,1719.4,1719.3,1.62168733]
[1693374067238,2.95579839,1719.4,1719.3,0.61098506]
[1693374068553,2.95579839,1719.4,1719.2,2.53816493]
[1693374068758,2.95579839,1719.4,1719.3,1.01070227]
[1693374069063,2.95579839,1719.4,1719.3,1.62168733]